[Event "9th Porticcio Open 2024"]
[Site "Porticcio"]
[Date "2024.07.02"]
[Round "5.8"]
[White "Bulmaga, Irina"]
[Black "Ha, Yihan"]
[Result "1-0"]
[ECO "B12"]
[WhiteElo "2391"]
[BlackElo "2166"]
[Annotator "TA"]
[PlyCount "39"]
[EventDate "2024.07.01"]
[EventType "swiss"]
[EventCountry "FRA"]
[SourceTitle "playchess.com"]
[Source "ChessBase"]
[SourceQuality "1"]
[TimeControl "5400+30"]

{[%evp 15,39,32,21,12,126,126,199,181,218,128,136,147,257,258,231,199,468,437,467,458,1166,1135,1488,1470,1543,1482]} 1. e4 {[%emt 0:02:27]} c6 {[%emt 0:00:05]} 2. d4 {[%emt 0:00:25]} d5 {[%emt 0:00:09]} 3. e5 {[%emt 0:00:07]} Bf5 {[%emt 0:00:14]} 4. Nf3 {[%emt 0:00:07]} e6 {[%emt 0:00:08]} 5. Be2 {[%emt 0:00:07]} c5 {[%emt 0:01:10]} 6. Be3 {[%emt 0:00:53]} cxd4 {[%emt 0:00:56]} 7. Nxd4 {[%emt 0:00:08]} Ne7 {[%emt 0:00:31]} 8. O-O {[%emt 0:00:42]} Nbc6 {[%emt 0:01:31]} 9. Bb5 {[%emt 0:00:48]} Qb8 {[%emt 0:07:19] [#]} (9... Bg6 $11) 10. c4 $1 $16 {[%emt 0:08:35] White is much more active.} Qxe5 {[%emt 0:19:18] [#]} (10... a6 $16) 11. Qa4 $1 $18 {[%emt 0:12:01] White is clearly better.} Qc7 {[%emt 0:09:08]} 12. Rc1 {[%emt 0:32:18]} ({White should play} 12. cxd5 $18 exd5 13. Nc3) 12... dxc4 {[%emt 0:03:36]} 13. Nd2 {[%emt 0:05:04]} (13. Qxc4 $6 e5 14. Nxc6 (14. Bxc6+ bxc6 15. Nxf5 Nxf5 $11) 14... Nxc6 $14) (13. Bxc4 $6 a6 $11) 13... Bd3 {[%emt 0:11:56]} (13... f6 $16 {was necessary.} 14. Qxc4 (14. Nxc4 Kf7 $16) 14... Qd7) 14. Nxc4 {[%emt 0:01:16]} (14. Bxc4 Bf5 15. Bb5 Rd8 16. Nxf5 (16. Qxa7 Rd7 $18) (16. Bxc6+ Nxc6 17. Nxc6 bxc6 $16) 16... Nxf5 17. Bxc6+ (17. Qxa7 Rd7 $16) 17... bxc6 18. Rxc6 Qd7 $18) 14... Rc8 {[%emt 0:02:36]} 15. Qxa7 {[%emt 0:07:32]} Nd5 {[%emt 0:01:48] Prevents Nb6.} (15... Bxc4 16. Rxc4 h5) 16. Nxc6 {[%emt 0:02:08] White is clearly winning.} bxc6 {[%emt 0:00:22]} 17. Bxc6+ {[%emt 0:02:12]} Ke7 {[%emt 0:15:52]} (17... Qxc6 $2 {too greedy.} 18. Ne5) (17... Kd8 $142) 18. Qa3+ {[%emt 0:01:06]} ({Less strong is} 18. Qc5+ Kd8 19. Qd4 Qxc6 $18) 18... Kd8 {[%emt 0:02:38]} 19. Qxd3 {[%emt 0:00:26]} Qxc6 {[%emt 0:01:26]} 20. Nb6 {[%emt 0:00:27] Weighted Error Value: White=0.12 (very precise) /Black=0.86.  Mistake:       	White=1     	Black=5      Inaccurate:     	---       	Black=1      OK:         	White=3     	Black=1      Best:        	White=1     	---        Strong:       	White=1     	---} 1-0

[Event "9th Porticcio Open 2024"]
[Site "Porticcio"]
[Date "2024.07.02"]
[Round "5.9"]
[White "Michalska, Lena"]
[Black "Daulet, Alikhan"]
[Result "0-1"]
[ECO "D33"]
[WhiteElo "1747"]
[BlackElo "1877"]
[Annotator "NA RC"]
[PlyCount "78"]
[EventDate "2024.07.01"]
[EventType "swiss"]
[EventCountry "FRA"]
[SourceTitle "playchess.com"]
[Source "ChessBase"]
[SourceQuality "1"]
[TimeControl "5400+30"]

1. c4 {[%emt 0:00:15]} e6 {[%emt 0:00:10]} 2. g3 {[%emt 0:00:51]} d5 {[%emt 0:00:08]} 3. Bg2 {[%emt 0:00:08]} Nf6 {[%emt 0:01:53]} 4. Nf3 {[%emt 0:01:12]} c5 {[%emt 0:03:15]} 5. cxd5 {[%emt 0:03:56]} exd5 {[%emt 0:00:29]} 6. d4 {[%emt 0:00:05]} h6 {[%emt 0:04:12]} 7. Nc3 {[%emt 0:02:08]} Nc6 {[%emt 0:00:09]} 8. O-O {[%emt 0:02:05]} Bg4 {[%emt 0:01:09]} 9. Be3 {[%emt 0:03:44]} cxd4 {[%emt 0:06:40]} 10. Nxd4 {[%emt 0:00:19]} Qd7 {[%emt 0:02:04]} 11. Re1 {[%emt 0:05:23]} Be7 {[%emt 0:01:30]} 12. Qb3 {[%emt 0:05:47]} Rd8 {[%emt 0:04:18]} 13. Rad1 {[%emt 0:00:32]} Na5 {[%emt 0:00:24]} 14. Qb5 {[%emt 0:00:45]} Nc4 {[%emt 0:00:42]} 15. Nc2 {[%emt 0:23:32]} Bf5 {[%emt 0:06:25]} 16. Nxd5 {[%emt 0:20:05]} Qxb5 {[%emt 0:00:28]} 17. Nc7+ {[%emt 0:00:05]} Kf8 {[%emt 0:00:03]} 18. Rxd8+ {[%emt 0:00:06]} Bxd8 {[%emt 0:00:04]} 19. Nxb5 {[%emt 0:00:04]} Bxc2 {[%emt 0:02:03]} 20. Bc5+ {[%emt 0:06:04]} Be7 {[%emt 0:00:23]} 21. Bxa7 {[%emt 0:00:23]} Ba4 {[%emt 0:00:36]} 22. Nd4 {[%emt 0:01:33]} Nxb2 {[%emt 0:00:51]} 23. Rb1 {[%emt 0:02:54]} Ba3 {[%emt 0:01:35]} 24. Bxb7 {[%emt 0:00:13]} Kg8 {[%emt 0:00:37]} 25. Rc1 {[%emt 0:04:44]} Kh7 {[%emt 0:01:10]} 26. Rc7 {[%emt 0:00:36]} Bd6 {[%emt 0:01:23]} 27. Rc1 {[%emt 0:00:40]} Bd7 {[%emt 0:00:22]} 28. Rc2 {[%emt 0:02:07]} Na4 {[%emt 0:00:47]} 29. Rc4 {[%emt 0:03:39]} Re8 {[%emt 0:01:03]} 30. f4 {[%emt 0:02:19]} Ne4 {[%emt 0:01:28]} 31. Nc6 {[%emt 0:01:43]} Nac3 {[%emt 0:00:32]} 32. Ne5 {[%emt 0:02:55]} Bxe5 {[%emt 0:00:46]} 33. Bxe4+ {[%emt 0:00:26]} Nxe4 {[%emt 0:00:03]} 34. Rxe4 {[%emt 0:00:26]} Bb8 {[%emt 0:00:06]} 35. Rxe8 {[%emt 0:05:34]} Bxa7+ {[%emt 0:00:04]} 36. e3 {[%emt 0:00:03]} Bxe8 {[%emt 0:00:04]} 37. Kf2 {[%emt 0:00:04]} Kg6 {[%emt 0:00:04]} 38. Kf3 {[%emt 0:00:20]} Bc6+ {[%emt 0:00:04]} 39. Ke2 {[%emt 0:01:20]} Kf5 {[%emt 0:00:05]} 0-1

[Event "9th Porticcio Open 2024"]
[Site "Porticcio"]
[Date "2024.07.02"]
[Round "5.10"]
[White "Vuitton, Gilles"]
[Black "Don Ignazi, Pierre Ange"]
[Result "1/2-1/2"]
[ECO "E92"]
[WhiteElo "1980"]
[BlackElo "1870"]
[Annotator "NA RC"]
[PlyCount "141"]
[EventDate "2024.07.01"]
[EventType "swiss"]
[EventCountry "FRA"]
[SourceTitle "playchess.com"]
[Source "ChessBase"]
[SourceQuality "1"]
[TimeControl "5400+30"]

1. Nf3 {[%emt 0:00:17]} Nf6 {[%emt 0:03:58]} 2. c4 {[%emt 0:01:10]} g6 {[%emt 0:00:28]} 3. Nc3 {[%emt 0:06:18]} Bg7 {[%emt 0:00:53]} 4. e4 {[%emt 0:00:39]} d6 {[%emt 0:00:06]} 5. d4 {[%emt 0:00:05]} O-O {[%emt 0:00:09]} 6. Be2 {[%emt 0:00:14]} e5 {[%emt 0:00:07]} 7. d5 {[%emt 0:00:16]} Nbd7 {[%emt 0:01:03]} 8. Bg5 {[%emt 0:02:00]} a5 {[%emt 0:00:51]} 9. Nd2 {[%emt 0:10:28]} Nc5 {[%emt 0:04:28]} 10. h4 {[%emt 0:04:42] E92: King's Indian: Classical: 6 Be2 e5: 7 dxe5, 7 Be3 and Petrosian System without 7...Nbd7.} h6 {[%emt 0:07:22]} 11. Be3 {[%emt 0:01:12]} Qe7 {[%emt 0:15:30]} 12. h5 {[%emt 0:26:55]} g5 {[%emt 0:00:33]} 13. g4 {[%emt 0:02:54]} c6 {[%emt 0:01:51]} 14. f3 {[%emt 0:00:34]} Bd7 {[%emt 0:01:43]} 15. Nf1 {[%emt 0:00:20]} Rfd8 {[%emt 0:29:53]} 16. Ng3 {[%emt 0:01:02]} Ne8 {[%emt 0:03:23]} 17. O-O {[%emt 0:05:15]} Qf8 {[%emt 0:01:58]} 18. b3 {[%emt 0:10:11]} Bf6 {[%emt 0:05:16]} 19. Qd2 {[%emt 0:02:34]} Be7 {[%emt 0:00:13]} 20. Rac1 {[%emt 0:04:39]} Nc7 {[%emt 0:00:41]} 21. Nf5 {[%emt 0:02:11]} Bxf5 {[%emt 0:00:22]} 22. gxf5 {[%emt 0:00:47]} f6 {[%emt 0:00:27]} 23. Kf2 $16 {[%emt 0:00:27]} Kh7 {[%emt 0:00:09]} (23... Ne8 $142 24. Kg2 Rdc8) 24. Rh1 {[%emt 0:01:05]} Qf7 {[%emt 0:00:45]} 25. Na4 {[%emt 0:01:42]} Ne8 {[%emt 0:10:33]} 26. Rh2 {[%emt 0:00:50]} Nc7 {[%emt 0:02:52]} 27. Nc3 {[%emt 0:01:33]} N7a6 {[%emt 0:01:03]} 28. Rb1 {[%emt 0:03:41]} Nc7 {[%emt 0:01:37]} 29. Kg3 {[%emt 0:00:27]} Qe8 {[%emt 0:00:46]} 30. Kg4 {[%emt 0:00:18]} Qf7 {[%emt 0:03:19]} 31. Qd1 {[%emt 0:04:37]} Ne8 {[%emt 0:00:08]} 32. a3 {[%emt 0:00:38]} Bf8 {[%emt 0:01:10]} 33. b4 {[%emt 0:01:06]} axb4 {[%emt 0:00:02]} 34. axb4 {[%emt 0:00:07]} Nd7 {[%emt 0:00:51]} 35. Ra1 {[%emt 0:01:30]} c5 {[%emt 0:01:12]} 36. b5 {[%emt 0:00:42]} Nb6 {[%emt 0:00:19]} 37. Bd3 {[%emt 0:01:02]} Ng7 {[%emt 0:01:20]} 38. Na4 {[%emt 0:00:38]} Qc7 {[%emt 0:00:09]} 39. Rha2 {[%emt 0:00:17]} Nd7 {[%emt 0:01:24]} 40. Qb3 {[%emt 0:01:31]} b6 {[%emt 0:00:57]} 41. Nc3 {[%emt 0:00:49]} Qb7 {[%emt 0:00:02]} 42. Ra6 {[%emt 0:00:31]} Ne8 {[%emt 0:00:29]} 43. Qa2 {[%emt 0:00:42]} Nc7 {[%emt 0:00:28]} 44. Ra7 {[%emt 0:00:29]} Rxa7 {[%emt 0:00:01]} 45. Qxa7 {[%emt 0:00:11]} Rb8 {[%emt 0:00:01]} 46. Qxb7 {[%emt 0:00:32]} Rxb7 {[%emt 0:00:01]} 47. Ne2 {[%emt 0:00:31]} Be7 {[%emt 0:00:16]} 48. Kh3 {[%emt 0:00:19]} Kg7 {[%emt 0:00:26]} 49. Kg2 {[%emt 0:00:05]} Kf7 {[%emt 0:00:03]} 50. Kf2 {[%emt 0:00:21]} Ke8 {[%emt 0:00:01]} 51. Ke1 {[%emt 0:00:13]} Kd8 {[%emt 0:00:18]} 52. Kf2 {[%emt 0:00:20]} Kc8 {[%emt 0:00:02]} 53. Ng1 {[%emt 0:00:19]} Ne8 {[%emt 0:00:22]} 54. Ra8+ {[%emt 0:00:18]} Nb8 {[%emt 0:01:11]} 55. Ne2 {[%emt 0:00:07]} Bd8 {[%emt 0:00:38]} 56. Ng3 {[%emt 0:00:21]} Rh7 {[%emt 0:01:00]} 57. Ra1 {[%emt 0:00:15]} Kb7 {[%emt 0:00:13]} 58. Be2 {[%emt 0:00:21]} Rg7 {[%emt 0:00:37]} 59. Kg2 {[%emt 0:00:21]} Be7 {[%emt 0:00:01]} 60. Kh3 {[%emt 0:00:08]} Bf8 {[%emt 0:02:51]} 61. Kg4 {[%emt 0:00:02]} Rd7 {[%emt 0:00:19]} 62. Nh1 {[%emt 0:00:13]} Bg7 {[%emt 0:00:22]} 63. Nf2 {[%emt 0:00:05]} Nc7 {[%emt 0:00:53]} 64. Nh1 {[%emt 0:00:21]} Rd8 {[%emt 0:00:09]} 65. Bd2 {[%emt 0:00:20]} Nd7 {[%emt 0:00:08]} 66. Ng3 {[%emt 0:00:19]} Bf8 {[%emt 0:00:39]} 67. Be3 {[%emt 0:00:11]} Bg7 {[%emt 0:00:03]} 68. Bd2 {[%emt 0:00:08]} Bf8 {[%emt 0:00:01]} 69. Be3 {[%emt 0:00:13]} Bg7 {[%emt 0:00:21]} 70. Bd2 {[%emt 0:09:31]} Bf8 71. Be3 1/2-1/2

[Event "9th Porticcio Open 2024"]
[Site "Porticcio"]
[Date "2024.07.02"]
[Round "5.11"]
[White "Bernardi, Alexandre"]
[Black "Bernardi, Nicolas"]
[Result "0-1"]
[ECO "C60"]
[WhiteElo "1866"]
[BlackElo "1832"]
[Annotator "NA RC"]
[PlyCount "88"]
[EventDate "2024.07.01"]
[EventType "swiss"]
[EventCountry "FRA"]
[SourceTitle "playchess.com"]
[Source "ChessBase"]
[SourceQuality "1"]
[TimeControl "5400+30"]

1. e4 {[%emt 0:01:11]} e5 {[%emt 0:00:12]} 2. Nf3 {[%emt 0:00:07]} Nc6 {[%emt 0:00:08]} 3. Bb5 {[%emt 0:00:04]} g6 {[%emt 0:15:48]} 4. c3 {[%emt 0:06:01]} Bg7 {[%emt 0:01:30]} 5. O-O {[%emt 0:00:40]} Nge7 {[%emt 0:00:53]} 6. d4 {[%emt 0:03:55]} exd4 {[%emt 0:04:45]} 7. cxd4 {[%emt 0:01:21]} O-O {[%emt 0:02:26]} 8. Nc3 {[%emt 0:13:07]} h6 {[%emt 0:05:05]} 9. h3 {[%emt 0:07:07]} a6 {[%emt 0:03:39]} 10. Ba4 {[%emt 0:03:50]} b5 {[%emt 0:03:52]} 11. Bc2 {[%emt 0:00:37]} d5 {[%emt 0:01:34]} 12. e5 {[%emt 0:10:01]} Bf5 {[%emt 0:02:13]} 13. Ne2 {[%emt 0:02:07]} Qd7 {[%emt 0:06:45]} 14. Bf4 {[%emt 0:05:04]} Bxc2 {[%emt 0:04:52]} 15. Qxc2 {[%emt 0:00:09]} Rac8 {[%emt 0:04:12]} 16. Rfc1 {[%emt 0:10:56]} Nd8 {[%emt 0:05:55]} 17. a4 {[%emt 0:04:03]} Ne6 {[%emt 0:01:14]} 18. Bd2 {[%emt 0:01:30]} c5 {[%emt 0:07:03]} 19. Qd3 {[%emt 0:06:58]} Nf5 {[%emt 0:06:01]} 20. Bc3 {[%emt 0:04:13]} b4 {[%emt 0:06:32]} 21. Bd2 {[%emt 0:01:15]} c4 {[%emt 0:00:20]} 22. Qc2 {[%emt 0:01:03]} a5 {[%emt 0:00:44]} 23. g4 {[%emt 0:01:40]} Ne7 {[%emt 0:00:51]} 24. Ng3 {[%emt 0:01:13]} Nc6 {[%emt 0:01:54]} 25. Be3 {[%emt 0:00:49]} b3 {[%emt 0:02:13]} 26. Qd2 {[%emt 0:01:28]} Kh7 {[%emt 0:01:29]} 27. g5 {[%emt 0:05:44]} h5 {[%emt 0:03:00]} 28. Rf1 {[%emt 0:02:20]} Nb4 {[%emt 0:01:23]} 29. Ne1 {[%emt 0:01:18]} Rb8 {[%emt 0:04:30]} 30. h4 {[%emt 0:02:18]} Rfc8 {[%emt 0:00:31]} 31. f4 {[%emt 0:01:12]} Bf8 {[%emt 0:02:01]} 32. f5 {[%emt 0:01:42]} Ng7 {[%emt 0:00:16]} 33. Qe2 {[%emt 0:00:33]} Na2 {[%emt 0:02:01]} 34. f6 {[%emt 0:01:20]} Ne6 {[%emt 0:00:15]} 35. Nxh5 {[%emt 0:00:22]} c3 {[%emt 0:00:56]} 36. Bc1 {[%emt 0:00:39]} Nxd4 {[%emt 0:00:47]} 37. Qg2 {[%emt 0:00:14]} gxh5 {[%emt 0:00:27]} 38. bxc3 {[%emt 0:00:37]} Nxc3 {[%emt 0:00:18]} 39. Qf2 {[%emt 0:00:36]} Nce2+ {[%emt 0:00:33]} 40. Kh2 {[%emt 0:00:30]} b2 {[%emt 0:00:28]} 41. e6 {[%emt 0:00:34]} Qxe6 {[%emt 0:00:22]} 42. g6+ {[%emt 0:00:19]} fxg6 {[%emt 0:00:08]} 43. Bxb2 {[%emt 0:00:33]} Bd6+ {[%emt 0:00:18]} 44. Kg2 {[%emt 0:00:28]} Qg4+ {[%emt 0:00:09]} 0-1

[Event "9th Porticcio Open 2024"]
[Site "Porticcio"]
[Date "2024.07.02"]
[Round "6.3"]
[White "Batsiashvili, Nino"]
[Black "Kuru, Atilla"]
[Result "1-0"]
[ECO "D10"]
[WhiteElo "2450"]
[BlackElo "2314"]
[Annotator "RC"]
[PlyCount "107"]
[EventDate "2024.07.01"]
[EventType "swiss"]
[EventCountry "FRA"]
[SourceTitle "playchess.com"]
[Source "ChessBase"]
[SourceQuality "1"]
[TimeControl "5400+30"]

1. d4 {[%emt 1:31:00]} d5 {[%emt 0:04:59]} 2. c4 {[%emt 0:00:00]} c6 {[%emt 0:00:13]} 3. cxd5 {[%emt 0:00:00]} cxd5 {[%emt 0:00:08]} 4. Bf4 {[%emt 0:00:00]} Nc6 {[%emt 0:00:13]} 5. e3 {[%emt 0:00:00]} Nf6 {[%emt 0:01:23]} 6. Nc3 {[%emt 0:00:00]} a6 {[%emt 0:00:21]} 7. Bd3 {[%emt 0:00:00]} Bg4 {[%emt 0:00:48]} 8. f3 {[%emt 0:00:00]} Bh5 {[%emt 0:01:03]} 9. Qb3 {[%emt 0:00:00]} Na5 {[%emt 0:00:18]} 10. Qa4+ {[%emt 0:00:00]} Nc6 {[%emt 0:00:17]} 11. Rc1 {[%emt 0:00:00]} e6 {[%emt 0:00:33]} 12. Nge2 {[%emt 0:00:00]} Bg6 {[%emt 0:02:13]} 13. Bxg6 {[%emt 0:00:00]} hxg6 {[%emt 0:00:07]} 14. e4 {[%emt 0:00:00]} b5 {[%emt 0:03:42]} 15. Qd1 {[%emt 0:00:00]} Rc8 {[%emt 0:05:14]} 16. O-O {[%emt 0:00:00]} dxe4 {[%emt 0:05:48]} 17. fxe4 {[%emt 0:00:00]} e5 {[%emt 0:07:43]} 18. dxe5 {[%emt 0:00:00]} Bc5+ {[%emt 0:00:16]} 19. Kh1 {[%emt 0:00:00]} Qxd1 {[%emt 0:00:12]} 20. Nxd1 {[%emt 0:00:00]} Nxe4 {[%emt 0:00:07]} 21. Nec3 {[%emt 0:00:00]} Nxc3 {[%emt 0:01:19]} 22. Nxc3 {[%emt 0:00:00]} Ba7 {[%emt 0:20:56]} 23. Ne4 {[%emt 0:00:00]} Bb8 {[%emt 0:08:05]} 24. e6 {[%emt 0:00:00]} Bxf4 {[%emt 0:03:35]} 25. Rxf4 {[%emt 0:00:00]} Ke7 {[%emt 0:00:22]} 26. Rxf7+ {[%emt 0:00:00]} Kxe6 {[%emt 0:00:06]} 27. Ng5+ {[%emt 0:00:00]} Kd6 {[%emt 0:00:41]} 28. Rxg7 {[%emt 0:00:00]} Ne5 {[%emt 0:00:06]} 29. Rd1+ {[%emt 0:00:00]} Kc5 {[%emt 0:00:33]} 30. Nf3 {[%emt 0:00:00]} Nxf3 {[%emt 0:02:07]} 31. gxf3 {[%emt 0:00:00]} Rcf8 {[%emt 0:00:26]} 32. Rc1+ {[%emt 0:00:00]} Kb4 {[%emt 0:00:50]} 33. Rxg6 {[%emt 0:00:00]} Rxf3 {[%emt 0:00:10]} 34. Rg4+ {[%emt 0:00:00]} Ka5 {[%emt 0:00:05]} 35. Rc6 {[%emt 0:00:00]} Rf1+ {[%emt 0:00:46]} 36. Kg2 {[%emt 0:00:00]} Rb1 {[%emt 0:00:02]} 37. b4+ {[%emt 0:01:25]} Rxb4 {[%emt 0:00:07]} 38. Rxa6+ {[%emt 0:00:03]} Kxa6 {[%emt 0:00:07]} 39. Rxb4 {[%emt 0:00:04]} Ka5 {[%emt 0:00:11]} 40. Rf4 {[%emt 0:01:39]} b4 {[%emt 0:03:32]} 41. h4 {[%emt 0:00:27]} Ka4 {[%emt 0:01:34]} 42. Kh3 {[%emt 0:00:19]} Ka3 {[%emt 0:01:21]} 43. Rf2 {[%emt 0:00:07]} Rh7 {[%emt 0:00:31]} 44. Rh2 {[%emt 0:01:44]} Rh8 {[%emt 0:00:36]} 45. Kg4 {[%emt 0:00:57]} Rg8+ {[%emt 0:00:12]} 46. Kf5 {[%emt 0:00:08]} Rh8 {[%emt 0:00:37]} 47. Kg6 {[%emt 0:00:19]} Ra8 {[%emt 0:00:19]} 48. h5 {[%emt 0:00:13]} Ra6+ {[%emt 0:00:03]} 49. Kg5 {[%emt 0:00:08]} Ra5+ {[%emt 0:00:02]} 50. Kg4 {[%emt 0:00:30]} Ra6 {[%emt 0:00:28]} 51. Kf4 {[%emt 0:00:37]} Rb6 {[%emt 0:00:17]} 52. h6 {[%emt 0:00:19]} Rxh6 {[%emt 0:00:16]} 53. Rxh6 {[%emt 0:00:01]} Kxa2 {[%emt 0:00:08]} 54. Ra6+ {[%emt 0:01:07]} 1-0

[Event "9th Porticcio Open 2024"]
[Site "Porticcio"]
[Date "2024.07.02"]
[Round "6.4"]
[White "Bulmaga, Irina"]
[Black "Rakotomaharo, Fy Antenaina"]
[Result "1-0"]
[ECO "B08"]
[WhiteElo "2391"]
[BlackElo "2448"]
[Annotator "TA"]
[PlyCount "77"]
[EventDate "2024.07.01"]
[EventType "swiss"]
[EventCountry "FRA"]
[SourceTitle "playchess.com"]
[Source "ChessBase"]
[SourceQuality "1"]
[TimeControl "5400+30"]

{[%evp 15,77,18,21,0,12,11,34,8,12,7,41,45,45,40,35,24,41,35,56,67,63,70,61,60,153,161,157,18,11,12,101,0,98,104,395,402,404,409,406,415,389,395,1113,378,402,367,388,381,408,389,420,427,465,449,455,456,579,560,1231,1140,29981,29982,6307,2108]} 1. e4 {[%emt 0:00:03]} g6 {[%emt 0:04:15]} 2. d4 {[%emt 0:00:13]} Bg7 {[%emt 0:00:02]} 3. Nc3 {[%emt 0:00:21]} d6 {[%emt 0:00:08]} 4. Nf3 {[%emt 0:00:20]} Nf6 {[%emt 0:01:25]} 5. Be2 {[%emt 0:00:52]} a6 {[%emt 0:01:02]} 6. O-O {[%emt 0:01:54]} O-O {[%emt 0:00:06]} 7. a4 {[%emt 0:00:22]} Nc6 {[%emt 0:00:23]} 8. h3 {[%emt 0:03:10]} e5 {[%emt 0:03:12]} 9. dxe5 {[%emt 0:02:32]} dxe5 {[%emt 0:09:14]} 10. Bc4 {[%emt 0:07:14]} Qe7 {[%emt 0:11:37]} 11. Nd5 {[%emt 0:15:21] White is slightly better.} Nxd5 {[%emt 0:01:10]} 12. Bxd5 {[%emt 0:02:20]} Rd8 {[%emt 0:20:45]} 13. Bg5 {[%emt 0:08:58]} Bf6 {[%emt 0:00:16]} 14. Bxf6 {[%emt 0:00:56]} Qxf6 {[%emt 0:00:08]} 15. Qe2 {[%emt 0:03:21]} Ne7 {[%emt 0:15:44]} 16. Rad1 {[%emt 0:03:45][%cal Od5f7]} Kg7 {[%emt 0:00:12]} 17. Qe3 {[%emt 0:04:13]} Nxd5 {[%emt 0:11:02]} 18. exd5 {[%emt 0:02:29][%cal Of1e1]} Re8 {[%emt 0:05:50]} 19. Rfe1 {[%emt 0:03:33]} e4 {[%emt 0:00:54]} (19... Qd6 $14) 20. Nd2 $16 {[%emt 0:08:00]} Qxb2 {[%emt 0:08:43][%cal Ob7b5]} 21. Qc5 {[%emt 0:01:35]} (21. Nxe4 $16 {Threatens to win with Rb1.} Bf5 22. Rb1) 21... Bf5 $1 $11 {[%emt 0:03:49]} 22. Rb1 {[%emt 0:03:26]} (22. Qxc7 e3 (22... Rac8 23. Qf4 $15) 23. fxe3 (23. Rxe3 Rxe3 24. fxe3 Qxc2 $15) 23... Bxc2 $11) 22... Qe5 {[%emt 0:00:14]} (22... b6 $1 $11 {keeps the balance.}) 23. Rxb7 {[%emt 0:01:44]} (23. g4 $1 $16 {[%cal Rg4f5]} b6 24. Qc6 (24. Qc4 Bd7 $14)) 23... c6 {[%emt 0:00:56]} 24. g4 $1 $36 {[%emt 0:08:00][%mdl 2048] White is in control. White is more active.} (24. Qxc6 Rec8 25. Qb6 Rxc2 $11) 24... Be6 {[%emt 0:00:07][%mdl 8192] This move loses the game for Black.} (24... cxd5 $16 25. gxf5 Rac8) 25. Rxe4 $18 {[%emt 0:03:22]} Qxd5 {[%emt 0:00:14]} 26. Qc3+ {[%emt 0:00:24]} Kg8 {[%emt 0:00:44] [#]} 27. Re5 $1 {[%emt 0:00:30]} Qd8 {[%emt 0:01:06]} 28. Ne4 $1 {[%emt 0:01:23]} Qh4 $2 {[%emt 0:00:40] [#] Black is weak on the dark squares} (28... c5 29. Qf3 (29. Rxc5 Bc8 $18) (29. Nxc5 Rc8 $18) 29... Re7) 29. Rh5 $2 {[%emt 0:05:30]} gxh5 {[%emt 0:00:22]} 30. Nf6+ {[%emt 0:00:02]} (30. Qxc6 $2 Reb8 (30... Qxh3 $2 31. Nf6+ Kh8 32. Rb1 $19) (30... hxg4 $2 31. Qc3 $19) 31. Nc5 Qxh3 32. Nxe6 Qxg4+ 33. Kh2 Qxe6 $19 (33... fxe6 $2 34. Rb3 $19)) 30... Qxf6 {[%emt 0:00:38]} (30... Kf8 31. Nxe8 (31. Nxh7+ Kg8 $18) 31... Qg5 32. Nf6 $18 (32. Qh8+ Qg8 $11) (32. f4 Qg6 $18)) 31. Qxf6 {[%emt 0:00:09]} hxg4 {[%emt 0:00:29]} 32. hxg4 {[%emt 0:00:18]} ({Not} 32. Qg5+ Kf8 33. c4 (33. hxg4 Rab8 $18) 33... Rab8 $18) 32... Rad8 {[%emt 0:00:31]} 33. Rb1 {[%emt 0:00:43]} Rd5 {[%emt 0:00:31]} 34. Re1 {[%emt 0:00:50]} Red8 {[%emt 0:00:06]} 35. Kh2 {[%emt 0:01:18]} a5 {[%emt 0:00:52]} 36. Kg3 {[%emt 0:02:02]} Rb8 {[%emt 0:00:31]} 37. f4 {[%emt 0:00:46] Intending f5 and mate.} Rd7 {[%emt 0:00:30]} 38. Qg5+ {[%emt 0:00:51]} Kf8 {[%emt 0:00:06]} 39. Qh6+ {[%emt 0:00:08] Weighted Error Value: White=0.25 (precise) /Black=0.51.  Loses game:     	---       	Black=1      Mistake:       	White=3     	Black=4      Inaccurate:     	White=1     	Black=3      OK:         	White=9     	Black=9      Best:        	White=3     	Black=4      Strong:       	White=3     	Black=1} (39. f5 $142 f6 40. Qh6+ (40. Qxf6+ Bf7 $18) 40... Kg8 41. fxe6) 1-0